[Event "German-ch Blitz Women 2022"]
[Site "Magdeburg"]
[Date "2022.08.13"]
[Round "1.8"]
[White "Heil, Marina"]
[Black "Muetsch, Annmarie"]
[Result "1-0"]
[ECO "A10"]
[WhiteElo "1926"]
[BlackElo "2249"]
[Annotator "TA"]
[PlyCount "116"]
[EventDate "2022.08.10"]
[EventType "tourn"]
[EventCountry "GER"]
[SourceTitle "playchess.com"]
[Source "ChessBase"]
[SourceQuality "1"]
[TimeControl "180+2"]

{[%evp 12,116,44,40,33,37,39,18,41,26,35,50,44,20,39,-20,20,0,56,16,79,85,82,45,88,79,82,70,113,77,97,22,26,0,25,0,22,-19,-12,-31,-46,-29,-31,-64,-15,-14,-15,-191,-106,-110,-36,-23,-37,-45,0,-84,37,27,139,0,0,-43,0,0,259,250,246,-42,-41,-42,-53,-29980,-29981,-29981,-29981,-29985,-1547,-29984,-29985,-29992,-29983,-29982,-2214,-29981,-12842,-29983,-942,-29981,-29980,-29986,-29981,-29983,-29984,-29987,-29982,-29981,0,-29987,-12841,-29994,-29983,-29983,-29984,-29984,-29985,-29985,-29966]} 1. c4 {[%emt 0:00:02]} d6 {[%emt 0:00:01]} 2. Nc3 {[%emt 0:00:02]} e5 {[%emt 0:00:01]} 3. g3 {[%emt 0:00:02]} f5 {[%emt 0:00:03]} 4. Bg2 {[%emt 0:00:03]} Nf6 {[%emt 0:00:01]} 5. d3 {[%emt 0:00:02]} Be7 {[%emt 0:00:02]} 6. e4 {[%emt 0:00:04]} Nc6 {[%emt 0:00:12] 6...0-0 gains popularity.} 7. Nge2 {[%emt 0:00:02]} O-O {[%emt 0:00:06] A21: English Opening: 1...e5 2 Nc3.} 8. O-O {[%emt 0:00:02]} Kh8 {[%emt 0:00:10]} 9. a3 {[%emt 0:00:14]} a5 {[%emt 0:00:01] [#] The position is equal.} 10. Rb1 $146 {[%emt 0:00:10]} ({Predecessor:} 10. b3 Be6 11. d4 exd4 12. exf5 Bxf5 13. Nxd4 Nxd4 14. Qxd4 Qd7 15. Ra2 Ng4 16. Re2 {½-½ (27) Hillebrand,C (1516)-Korostenski,F (1658) LSS email 2012}) 10... fxe4 {[%emt 0:00:07]} 11. dxe4 {[%emt 0:00:02]} Bg4 {[%emt 0:00:04][%cal Oa5a4]} 12. h3 {[%emt 0:00:11]} Be6 {[%emt 0:00:04]} 13. Nd5 {[%emt 0:00:08]} (13. b3 $1 $14) 13... Qd7 {[%emt 0:00:11]} 14. Kh2 {[%emt 0:00:01]} Bf7 {[%emt 0:00:34]} (14... a4 $1 $11) 15. Nec3 {[%emt 0:00:15]} Bg6 {[%emt 0:00:10]} (15... Nd4 $11) 16. Be3 $16 {[%emt 0:00:29]} Bd8 {[%emt 0:00:30]} 17. Qd2 {[%emt 0:00:24] White is more active.} Nxd5 {[%emt 0:00:04]} 18. cxd5 {[%emt 0:00:02]} Ne7 {[%emt 0:00:09]} 19. Rbc1 {[%emt 0:00:08]} c5 {[%emt 0:00:12]} 20. dxc6 {[%emt 0:00:06]} bxc6 {[%emt 0:00:01][%cal Bb7c6,Bc6d5,Bd5d4][%mdl 32]} 21. Rfd1 {[%emt 0:00:07]} ({Better is} 21. Na4 $16) 21... Bc7 $11 {[%emt 0:00:02]} 22. Qc2 {[%emt 0:00:18]} Qe6 {[%emt 0:00:05]} 23. Qd2 {[%emt 0:00:28][%cal Oc3b5]} Rab8 {[%emt 0:00:04] Prevents Nb5.} 24. Nd5 {[%emt 0:00:18]} cxd5 {[%emt 0:00:13]} 25. Rxc7 {[%emt 0:00:08][%cal Re4d5]} d4 {[%emt 0:00:01]} 26. Bg5 {[%emt 0:00:03]} Ng8 {[%emt 0:00:02]} 27. Rdc1 {[%emt 0:00:02]} Nf6 {[%emt 0:00:13]} (27... h6 $15 28. Bh4 Be8) 28. Bxf6 {[%emt 0:00:01]} Qxf6 {[%emt 0:00:03]} 29. Qc2 {[%emt 0:00:01]} (29. f4 $11 {and White has nothing to worry.}) 29... h6 {[%emt 0:00:06]} (29... Qxf2 $19 {Threatens to win with ...h6.} 30. Qxf2 Rxf2 31. Rc8+ Rf8 32. Rxf8+ Rxf8) 30. Rf1 {[%emt 0:00:02]} Qe6 {[%emt 0:00:13]} ({Black should play} 30... a4 $17 31. Qc1 Qe6) 31. f4 $15 {[%emt 0:00:01]} exf4 {[%emt 0:00:04]} 32. gxf4 {[%emt 0:00:01]} Bf7 {[%emt 0:00:05]} 33. f5 {[%emt 0:00:01]} (33. Qd2 $11 {remains equal.}) 33... Qb3 {[%emt 0:00:03]} (33... Qf6 $17) 34. Qc6 $14 {[%emt 0:00:01]} Qxb2 {[%emt 0:00:05]} (34... Rb6 $11 {keeps the balance.} 35. Qd7 (35. Qc2 Qxb2 36. Rf3 Qb5 $15) 35... Kg8) 35. Qxd6 {[%emt 0:00:02]} (35. f6 $1 $16 {[%cal Rf6g7] Black must now prevent fxg7+.} g5 36. Qxd6) 35... Rbd8 $1 $36 {[%emt 0:00:04][%mdl 2048] Black has good play.} 36. Qe7 {[%emt 0:00:02]} ({Don't play} 36. Qe5 Qxa3 37. Rf3 Qd6 38. Qxd6 Rxd6 $11) 36... Rde8 {[%emt 0:00:01]} (36... d3 $5 {[%cal Rd3d2]}) 37. Qd7 {[%emt 0:00:01]} Qe2 $2 {[%emt 0:00:02][%mdl 8192]} (37... Rxe4 $11 {and Black stays safe.} 38. f6 g5) 38. Qxd4 $18 {[%emt 0:00:05]} Rd8 {[%emt 0:00:02]} 39. Qa1 {[%emt 0:00:02]} (39. Qc5 $18) 39... Rd2 $1 $15 {[%emt 0:00:02][%csl Gd2,LRe4,LRg2][%cal Re2g2]} 40. Rg1 {[%emt 0:00:01]} Qxe4 $1 {[%emt 0:00:02] And now ...Qf4+ would win.} 41. Qf1 {[%emt 0:00:06][%mdl 8192] Inhibits Qf4+. Black keeps a firm grip on the game.} (41. f6 $15 Qf4+ 42. Kh1 gxf6 43. Qf1) 41... Qe5+ {[%emt 0:00:01]} 42. Kh1 {[%emt 0:00:02]} Qxc7 {[%emt 0:00:01]} 43. f6 {[%emt 0:00:02]} Qe5 {[%emt 0:00:04]} (43... Bd5 $142 44. Qb5 Rxf6 $1 45. Qxd5 Rxd5 46. Bxd5 Qc3 47. Bg2 Qe3 48. Rf1 Rg6 49. Rb1 Qg3 50. Rb2 Qe1+ 51. Kh2 Qe5+ 52. Kh1 Qxb2 53. Bf3 Qc1+ 54. Bd1 Qxd1+ 55. Kh2 Qg1#) 44. fxg7+ {[%emt 0:00:01]} Qxg7 {[%emt 0:00:02]} 45. Be4 {[%emt 0:00:03]} Qe5 {[%emt 0:00:01][%csl Ge5][%cal Rd2h2]} 46. Bg2 {[%emt 0:00:01] [#]} Rd6 {[%emt 0:00:04]} (46... Rg8 $142 $1 47. Qc1 Qf4 48. Qa1+ Rg7 49. a4 Bc4 50. Qxg7+ Kxg7 51. Bc6+ Kh8 52. Rg2 Rd3 53. Rg8+ Bxg8 54. Kg2 Rg3+ 55. Kh2 Qf2+ 56. Kh1 Rxh3#) 47. Qf3 {[%emt 0:00:02] [#]} Rf6 {[%emt 0:00:02]} (47... Rg8 $142 $1 48. Qe4 (48. Qxf7 Rxg2) 48... Qg7 49. Qg4 Rg6 50. Bf3 Rxg4 51. Rxg4 Qa1+ 52. Kh2 Rb8 53. Be4 Rb3 54. Kg2 Qb2+ 55. Kg1 Rxh3 56. Bg2 Qb1+ 57. Kf2 Qf5+ 58. Ke1 Re3+ 59. Kd1 Bb3+ 60. Kd2 Qf2+ 61. Kc1 Re1#) 48. Qg4 {[%emt 0:00:01]} Qg5 {[%emt 0:00:02]} (48... Rg8 $142 49. Qe4 Qd6 50. Bf3 Rxg1+ 51. Kxg1 Qg3+ 52. Bg2 Re6 53. Qb1 Re1+ 54. Qxe1 Qxe1+ 55. Kh2 a4 56. Bb7 Qe7 57. Bc6 Qxa3 58. Bg2 Qd6+ 59. Kg1 Qg3 60. Kf1 Bc4+ 61. Kg1 a3 62. h4 a2 63. Kh1 a1=Q+ 64. Bf1 Qxf1#) 49. Qe2 {[%emt 0:00:01]} Bd5 {[%emt 0:00:02]} 50. Qb2 {[%emt 0:00:03]} Bxg2+ {[%emt 0:00:05]} 51. Rxg2 {[%emt 0:00:01]} Qf4 {[%emt 0:00:00]} 52. Qc2 {[%emt 0:00:04]} Qf1+ {[%emt 0:00:02]} 53. Kh2 {[%emt 0:00:01]} Qf4+ {[%emt 0:00:00]} 54. Kh1 {[%emt 0:00:01]} Qf5 {[%emt 0:00:01] Against Qc5} (54... Qe5 $142 55. Qd2 Rf1+ 56. Rg1 Rxg1+ 57. Kxg1 Rg8+ 58. Kf1 Qf5+ 59. Qf2 Qd3+ 60. Qe2 Qxh3+ 61. Ke1 Qc3+ 62. Kf1 Qc1+ 63. Qe1 Rf8+ 64. Ke2 Re8+ 65. Kd3 Qxe1 66. Kc4 Re5 67. Kd3 Qe2+ 68. Kc3 Re4 69. a4 Kh7 70. Kb3 Re3#) 55. Kh2 {[%emt 0:00:01]} Qxc2 {[%emt 0:00:01] Black mates.} 56. Rxc2 {[%emt 0:00:01]} Rf2+ {[%emt 0:00:01]} 57. Rxf2 {[%emt 0:00:01]} Rxf2+ 58. Kg3 Ra2 {[%mdl 32768] Weighted Error Value: White=1.09/Black=0.87. Loss on time!?} 1-0

[Event "German-ch Blitz Women 2022"]
[Site "Magdeburg"]
[Date "2022.08.13"]
[Round "1.9"]
[White "Fock, Sana"]
[Black "Zhou, Lepu Coco"]
[Result "1-0"]
[ECO "B23"]
[WhiteElo "1807"]
[BlackElo "1986"]
[Annotator "TA"]
[PlyCount "40"]
[EventDate "2022.08.10"]
[EventType "tourn"]
[EventCountry "GER"]
[SourceTitle "playchess.com"]
[Source "ChessBase"]
[SourceQuality "1"]
[TimeControl "180+2"]

{[%evp 14,40,-14,0,1,-8,7,0,0,0,0,-17,-14,-21,0,-25,-21,-17,252,139,119,140,170,135,306,286,558,547,1290]} 1. e4 {[%emt 0:00:02]} c5 {[%emt 0:00:01]} 2. Nc3 {[%emt 0:00:02]} Nc6 {[%emt 0:00:02]} 3. f4 {[%emt 0:00:02]} g6 {[%emt 0:00:03]} 4. Nf3 {[%emt 0:00:01]} Bg7 {[%emt 0:00:01]} 5. Bb5 {[%emt 0:00:03]} Nd4 {[%emt 0:00:02]} 6. O-O {[%emt 0:00:03]} Nxb5 {[%emt 0:00:03]} 7. Nxb5 {[%emt 0:00:02]} d6 {[%emt 0:00:08]} 8. a4 {[%emt 0:00:29]} Bd7 {[%emt 0:00:11] B23: Closed Sicilian: Lines without g3.} 9. Nc3 {[%emt 0:00:05]} Bc6 {[%emt 0:00:21]} 10. d3 {[%emt 0:00:22]} Nf6 {[%emt 0:00:29] The position is equal.} 11. Qe1 {[%emt 0:00:30]} O-O {[%emt 0:00:19]} 12. h3 {[%emt 0:00:19] [#]} Nd7 $146 {[%emt 0:00:45]} ({Predecessor:} 12... e6 13. f5 h6 14. e5 dxe5 15. fxg6 fxg6 16. Be3 Nd7 17. Ne4 Qe7 18. Qg3 Bxe4 19. dxe4 {½-½ (70) Bogdanov,D-Jakobsen,O (2365) Copenhagen 1991}) 13. Kh2 {[%emt 0:00:28]} Qc7 {[%emt 0:00:29]} 14. Ng5 {[%emt 0:00:10]} h6 {[%emt 0:00:05]} 15. Nf3 {[%emt 0:00:02]} g5 $2 {[%emt 0:00:21][%mdl 8192] [#]} (15... e6 $11) 16. Nd5 {[%emt 0:00:07]} ({White should play} 16. fxg5 $18 {Qh4 is the strong threat.} d5+ 17. Kh1 Bxc3 18. bxc3 (18. Qxc3 hxg5 19. Nxg5 Qd6 $16)) 16... Bxd5 $16 {[%emt 0:00:02]} 17. exd5 {[%emt 0:00:01]} gxf4 {[%emt 0:00:02]} 18. Bxf4 {[%emt 0:00:03] Black must now prevent Qh4.} Rae8 $2 {[%emt 0:00:10]} (18... Ne5 $16) 19. Qh4 $18 {[%emt 0:00:07]} e5 $2 {[%emt 0:00:02] [#]} (19... Qb6 20. b3 (20. Bxh6 Bxh6 21. Qxh6 Qxb2 $16) 20... Qb4) 20. Bxh6 {[%emt 0:00:04]} Nf6 {Inhibits Qg4.  Weighted Error Value: White=0.18 (very precise) /Black=0.85} 1-0

[Event "German-ch Blitz Women 2022"]
[Site "Magdeburg"]
[Date "2022.08.13"]
[Round "1.10"]
[White "Schuster, Rebekka"]
[Black "Nikolaeva, Mariya A"]
[Result "1-0"]
[ECO "C54"]
[WhiteElo "1815"]
[BlackElo "1309"]
[Annotator "NA RC COMBH"]
[PlyCount "38"]
[EventDate "2022.08.10"]
[EventType "tourn"]
[EventCountry "GER"]
[SourceTitle "playchess.com"]
[Source "ChessBase"]
[SourceQuality "1"]
[TimeControl "180+2"]

1. e4 {[%emt 0:00:01]} e5 {[%emt 0:00:01]} 2. Nf3 {[%emt 0:00:02]} Nc6 {[%emt 0:00:01]} 3. Bc4 {[%emt 0:00:01]} Bc5 {[%emt 0:00:02]} 4. c3 {[%emt 0:00:01]} Nf6 {[%emt 0:00:03]} 5. d3 {[%emt 0:00:01]} d6 {[%emt 0:00:02]} 6. O-O {[%emt 0:00:02]} h6 {[%emt 0:00:02]} 7. b4 {[%emt 0:00:01]} Bb6 {[%emt 0:00:01]} 8. a4 {[%emt 0:00:01]} a5 {[%emt 0:00:01]} 9. b5 {[%emt 0:00:27]} Ne7 {[%emt 0:00:02]} 10. h3 {[%emt 0:00:32]} Ng6 {[%emt 0:00:04]} 11. Be3 {[%emt 0:00:13]} Bxe3 {[%emt 0:00:29]} 12. fxe3 {[%emt 0:00:01]} O-O {[%emt 0:00:02]} 13. Nbd2 {[%emt 0:00:10]} d5 {[%emt 0:00:12]} 14. exd5 {[%emt 0:00:57]} Nxd5 {[%emt 0:00:02]} 15. Bxd5 {[%emt 0:00:01]} Qxd5 {[%emt 0:00:01]} 16. Nc4 {[%emt 0:00:07]} e4 {[%emt 0:00:19]} 17. Nd4 {[%emt 0:00:27]} Re8 {[%emt 0:01:11]} 18. Nb2 {[%emt 0:00:25]} Qg5 {[%emt 0:00:26]} 19. Qe2 Bxh3 1-0

[Event "German-ch Blitz Women 2022"]
[Site "Magdeburg"]
[Date "2022.08.13"]
[Round "1.11"]
[White "Zschischang, Marine"]
[Black "Schulze, Lara"]
[Result "0-1"]
[ECO "D37"]
[WhiteElo "2083"]
[BlackElo "2292"]
[Annotator "TA"]
[PlyCount "64"]
[EventDate "2022.08.10"]
[EventType "tourn"]
[EventCountry "GER"]
[SourceTitle "playchess.com"]
[Source "ChessBase"]
[SourceQuality "1"]
[TimeControl "180+2"]

{[%evp 9,64,28,29,0,17,8,17,27,22,20,30,7,28,0,0,0,7,0,0,0,8,0,0,2,24,-10,-28,-29,-8,-47,-37,-60,-56,-49,-35,-45,-37,-167,-117,-287,-297,-29982,-712,-29983,-29984,-29984,-29985,-29985,-29986,-29986,-29987,-29993,-29988,-29995,-29996,-29998,-29999]} 1. d4 {[%emt 0:00:00]} Nf6 {[%emt 0:00:02]} 2. Nf3 {[%emt 0:00:01]} d5 {[%emt 0:00:01]} 3. c4 {[%emt 0:00:01]} e6 {[%emt 0:00:01]} 4. Nc3 {[%emt 0:00:01]} a6 {[%emt 0:00:02]} 5. cxd5 {[%emt 0:00:04]} exd5 {[%emt 0:00:01]} 6. Qc2 {[%emt 0:00:01] D37: Queen's Gambit Declined: 5 Bf4.} Be6 {[%emt 0:00:06]} 7. Bg5 {[%emt 0:00:02]} Nbd7 {[%emt 0:00:03]} 8. e3 {[%emt 0:00:01] The position is equal.} Bd6 {[%emt 0:00:03]} 9. Bd3 {[%emt 0:00:03]} c6 {[%emt 0:00:04]} 10. O-O {[%emt 0:00:04]} h6 {[%emt 0:00:14]} 11. Bh4 {[%emt 0:00:02]} (11. Bf4 $5 {[%cal Rf4d6]} Qb8 12. Bxd6 Qxd6 13. h3 $14) 11... O-O {[%emt 0:00:04]} 12. Rfc1 {[%emt 0:00:10]} Re8 {[%emt 0:00:09]} 13. a3 {[%emt 0:00:04] [#]} Qc7 $146 {[%emt 0:00:11]} ({Predecessor:} 13... Qb8 14. Bg3 Bxg3 15. hxg3 Nb6 16. Ne2 Nc8 17. Nf4 Nd6 18. Ne5 Qc8 19. Qc5 Qd8 {0-1 (77) Radjabov,T (2765)-Le,Q (2709) chess24.com INT 2020}) 14. Rab1 {[%emt 0:00:04]} Bg4 {[%emt 0:00:04]} 15. Bg3 {[%emt 0:00:04]} Bxg3 {[%emt 0:00:03]} 16. hxg3 {[%emt 0:00:03]} Qd6 {[%emt 0:00:02]} 17. Bf5 {[%emt 0:00:08]} Bxf5 {[%emt 0:00:05]} 18. Qxf5 {[%emt 0:00:02]} g6 {[%emt 0:00:19]} 19. Qh3 {[%emt 0:00:02]} h5 {[%emt 0:00:05]} 20. b4 {[%emt 0:00:07]} Kg7 {[%emt 0:00:04]} 21. Na4 {[%emt 0:00:15]} Ne4 {[%emt 0:00:13]} 22. Nc5 {[%emt 0:00:02]} Ndf6 {[%emt 0:00:47]} 23. Nxb7 {[%emt 0:00:03] [#]} ({Better is} 23. Ne5 $15) 23... Qe7 $1 $19 {[%emt 0:00:01]} 24. Na5 $2 {[%emt 0:00:08]} (24. Nc5 $17 {only move.} Nxf2 25. Kxf2 Qxe3+ 26. Kf1) 24... Nxf2 $1 {[%emt 0:00:27][%mdl 64] Decoy} 25. Kxf2 {[%emt 0:00:27]} (25. Qh4 $19 Nd3 26. Ne5 (26. Rxc6 $2 Qxe3+ 27. Kh1 Nf2+ 28. Kg1 N6g4 $19) 26... Nxe5 27. dxe5 Qxe5 28. Qf4) 25... Qxe3+ {[%emt 0:00:02]} 26. Kf1 {[%emt 0:00:01]} Ng4 {[%emt 0:00:05][%csl Gg4][%cal Re3f2] Black mates.} 27. Rc2 {[%emt 0:00:06]} Qd3+ {[%emt 0:00:03]} 28. Kg1 {[%emt 0:00:17]} Qxc2 {[%emt 0:00:01]} 29. Rf1 {[%emt 0:00:07]} Re2 {[%emt 0:00:06][%cal Be8e2,Be2e1,Be1f1][%mdl 32]} 30. Ne1 {[%emt 0:00:16]} Qd2 {[%emt 0:00:03]} 31. Nxc6 {[%emt 0:00:41]} Rxe1 {[%emt 0:00:04]} 32. Ne5 {[%emt 0:00:28]} Rxf1+ {[%emt 0:00:02] Weighted Error Value: White=0.48/Black=0.06 (flawless)} 0-1

[Event "German-ch Blitz Women 2022"]
[Site "Magdeburg"]
[Date "2022.08.13"]
[Round "1.12"]
[White "Stärk, Elisa"]
[Black "Melamed, Tatjana"]
[Result "0-1"]
[ECO "E62"]
[WhiteElo "1950"]
[BlackElo "2380"]
[Annotator "TA"]
[PlyCount "68"]
[EventDate "2022.08.10"]
[EventType "tourn"]
[EventCountry "GER"]
[SourceTitle "playchess.com"]
[Source "ChessBase"]
[SourceQuality "1"]
[TimeControl "180+2"]

{[%evp 13,68,25,23,14,39,26,20,16,25,-212,-33,-227,-72,-54,-57,-70,-17,-6,0,-8,0,0,0,0,0,0,0,-18,29,0,0,0,-7,0,8,0,0,0,0,-12,0,0,0,-66,-52,-163,-163,-163,-163,-163,-162,-162,-159,-159,-147,-790,-781]} 1. Nf3 {[%emt 0:00:02]} Nf6 {[%emt 0:00:01]} 2. g3 {[%emt 0:00:01]} g6 {[%emt 0:00:01]} 3. Bg2 {[%emt 0:00:00]} Bg7 {[%emt 0:00:02]} 4. O-O {[%emt 0:00:03]} O-O {[%emt 0:00:00]} 5. d4 {[%emt 0:00:02]} d6 {[%emt 0:00:02]} 6. c4 {[%emt 0:00:01]} c6 {[%emt 0:00:01]} 7. Nc3 {[%emt 0:00:00]} Bf5 $1 {[%emt 0:00:01][%mdl 4] is more profitable than 7...Qa5 at the moment.} 8. Bg5 {[%emt 0:00:04] E62: King's Indian: Fianchetto: 6...c6 and Panno Variation (6...Nc6) without ...a6.} h6 {[%emt 0:00:05]} 9. Bf4 {[%emt 0:00:03] [#]} Ne4 $146 {[%emt 0:00:01]} ({Predecessor:} 9... Qc8 10. Re1 Nh5 11. e4 Be6 12. Bd2 Bxc4 13. e5 Be6 14. Nh4 Rd8 15. Be4 dxe5 16. Bxg6 {1-0 (25) Radovanovic,M (2402)-Shyam,S (2527) Paracin 2018}) 10. Nxe4 {[%emt 0:00:03] The position is equal.} Bxe4 {[%emt 0:00:02]} 11. e3 $2 {[%emt 0:00:05]} (11. h4 $11) 11... Nd7 $2 {[%emt 0:00:05]} ({Not} 11... g5 12. Nxg5 Bxg2 13. Kxg2 hxg5 14. Bxg5) ({Black should play} 11... e5 $19 12. Nxe5 (12. dxe5 $2 Bxf3 13. Qxf3 dxe5 $19) 12... dxe5 13. Bxe5 Bxg2 14. Bxg7 Bxf1 15. Bxf8 Bxc4 16. Bxh6 Bd5) 12. h4 $2 {[%emt 0:00:02]} (12. g4 $1 $15) 12... Nf6 $2 {[%emt 0:00:06]} (12... Bxf3 $19 {is more deadly.} 13. Qxf3 e5 14. dxe5 dxe5) 13. Nd2 $17 {[%emt 0:00:03]} Bxg2 {[%emt 0:00:04]} 14. Kxg2 {[%emt 0:00:01]} Re8 {[%emt 0:00:08]} (14... Nh5 $15 15. Nf3 Re8 16. Bxh6 Bxh6) 15. e4 $1 $11 {[%emt 0:00:04]} e5 {[%emt 0:00:01]} 16. dxe5 {[%emt 0:00:02]} dxe5 {[%emt 0:00:02]} 17. Be3 {[%emt 0:00:02]} Qd3 {[%emt 0:00:06]} 18. Qb1 {[%emt 0:00:10]} Rad8 {[%emt 0:00:06]} 19. Qxd3 {[%emt 0:00:01]} Rxd3 {[%emt 0:00:01]} 20. Nb3 {[%emt 0:00:26]} b6 {[%emt 0:00:21]} (20... Nxe4 {is superior.} 21. Rfd1 Red8 22. Rxd3 Rxd3) 21. c5 {[%emt 0:00:03]} (21. Kf3 {keeps more tension.} c5 22. Rad1 Red8 23. Rxd3 Rxd3 24. Nc1) 21... Nxe4 {[%emt 0:00:22]} 22. cxb6 {[%emt 0:00:03]} axb6 {[%emt 0:00:01]} 23. Bxb6 {[%emt 0:00:06]} Rb8 {[%emt 0:00:05]} 24. Be3 {[%emt 0:00:13]} Nf6 {[%emt 0:00:26][%cal Be4f6,Bf6d5,Bd5e3][%mdl 32]} 25. Rac1 {[%emt 0:00:06]} Nd5 {[%emt 0:00:03]} 26. Bc5 {[%emt 0:00:15]} Ra8 {[%emt 0:00:06]} 27. Ba3 {[%emt 0:00:18]} e4 {[%emt 0:00:05]} 28. Nc5 {[%emt 0:00:09]} (28. Rxc6 $11 e3 29. Kf3) 28... Rd2 $15 {[%emt 0:00:10] White must now prevent ...Ne3+. Black is much more active.} 29. Nxe4 (29. Rce1 $15) 29... Ne3+ $1 $19 {[%mdl 64] [#] Deflection, Double Attack} 30. Kf3 {[%emt 0:00:12]} Nxf1 {[%emt 0:00:04]} 31. Nxd2 Nxd2+ {[%emt 0:00:01]} 32. Ke3 {[%emt 0:00:21]} Rd8 {[%emt 0:00:05] aiming for ...Bd4+.} 33. b3 {[%emt 0:00:23]} h5 {[%emt 0:00:03]} 34. Rd1 $2 {[%emt 0:00:05][%mdl 8192] [#]} (34. Bb4 $17 Ne4 35. Rxc6) 34... Nc4+ $1 {[%emt 0:00:02][%mdl 512] Weighted Error Value: White=0.64/Black=0.32} 0-1

[Event "German-ch Blitz Women 2022"]
[Site "Magdeburg"]
[Date "2022.08.13"]
[Round "2.1"]
[White "Paehtz, Elisabeth"]
[Black "Melamed, Tatjana"]
[Result "1/2-1/2"]
[ECO "E62"]
[WhiteElo "2484"]
[BlackElo "2380"]
[Annotator "TA"]
[PlyCount "40"]
[EventDate "2022.08.10"]
[EventType "tourn"]
[EventCountry "GER"]
[SourceTitle "playchess.com"]
[Source "ChessBase"]
[SourceQuality "1"]
[TimeControl "180+2"]

{[%evp 19,40,17,14,0,10,0,25,23,41,29,36,0,16,16,15,16,12,14,10,12,43,2,14]} 1. d4 {[%emt 0:00:01]} Nf6 {[%emt 0:00:01]} 2. Nf3 {[%emt 0:00:01]} g6 {[%emt 0:00:03]} 3. g3 {[%emt 0:00:01]} Bg7 {[%emt 0:00:01]} 4. Bg2 {[%emt 0:00:00]} O-O {[%emt 0:00:02]} 5. O-O {[%emt 0:00:02]} d6 {[%emt 0:00:03]} 6. c4 {[%emt 0:00:01]} c6 {[%emt 0:00:01]} 7. Nc3 {[%emt 0:00:01]} Bf5 {[%emt 0:00:02]} 8. Nh4 {[%emt 0:00:03]} Be6 {[%emt 0:00:01]} 9. d5 {[%emt 0:00:02]} cxd5 {[%emt 0:00:01]} 10. cxd5 {[%emt 0:00:02]} Bd7 {[%emt 0:00:02]} 11. a3 {[%emt 0:00:12] E62: King's Indian: Fianchetto: 6...c6 and Panno Variation (6...Nc6) without ...a6.} Na6 {[%emt 0:00:03]} 12. Be3 {[%emt 0:00:05]} Nc7 {[%emt 0:00:08] [#]} 13. Bd4 $146 {[%emt 0:00:06] White has an edge.} ({Predecessor:} 13. Rc1 Nb5 14. Nxb5 Bxb5 15. a4 Bd7 16. Qb3 Qa5 17. Qxb7 Rfb8 18. Qc7 Qa6 19. Qc2 Bxa4 {½-½ (64) Golubenko,V (2269)-Seps,M (2236) Tromsoe 2014}) 13... Nb5 {[%emt 0:00:04]} 14. Nxb5 {[%emt 0:00:05]} Bxb5 {[%emt 0:00:01]} 15. Rc1 {[%emt 0:00:24]} a6 {[%emt 0:00:19]} 16. Qd2 {[%emt 0:00:05]} Rc8 {[%emt 0:00:14]} 17. Rxc8 {[%emt 0:00:03]} Qxc8 {[%emt 0:00:01]} 18. Rc1 {[%emt 0:00:01] Against Qc4} Qd7 {[%emt 0:00:04]} 19. Qc2 {[%emt 0:00:20]} Qg4 {[%emt 0:00:27]} 20. e4 {[%emt 0:00:34]} Bh6 {[%emt 0:00:21] Weighted Error Value: White=0.09 (flawless) /Black=0.11 (very precise)} 1/2-1/2